bitfinex-derivatives/quotes_ETHF0:USTF0_20250205
["timestamp","ask_amount","ask_price","bid_price","bid_amount"]
[1738749887196,0.8506,2761.6,2761.3,3.2078]
[1738749887399,0.8506,2761.6,2761.1,0.005428]
[1738749888587,0.8506,2761.6,2761.2,3.09656579]
[1738749889200,0.8506,2761.6,2761.3,3.2078]
[1738749891795,3.2078,2762.1,2761.5,3.09656579]
[1738749892096,3.2078,2762.1,2761.8,3.09656579]
[1738749892396,0.8618,2762.2,2762.0,3.2078]
[1738749893093,0.8144,2762.6,2762.1,3.09656579]
[1738749893298,0.8618,2762.8,2762.3,3.2078]
[1738749893886,0.8618,2762.8,2762.3,3.9315]
[1738749894095,0.8618,2762.8,2762.3,3.2078]
[1738749894294,0.89,2763.1,2762.3,3.2078]
[1738749894498,1.7518,2763.1,2762.3,3.2078]
[1738749895396,0.8618,2763.1,2762.3,8.9315]
[1738749895694,0.8618,2763.1,2762.3,13.56323144]
[1738749896200,0.8618,2763.1,2762.3,14.78523144]
[1738749896995,0.8562,2763.7,2762.4,0.72367]
[1738749897298,0.8149,2763.6,2763.0,6.30436579]
[1738749897694,3.2078,2763.5,2762.7,6.30436579]
[1738749898293,0.005428,2763.4,2762.8,0.005428]
[1738749900906,0.005428,2763.4,2763.0,3.09656579]
[1738749901604,0.005428,2763.4,2762.8,0.005428]
[1738749903508,3.2078,2763.2,2762.8,0.005428]
[1738749903807,3.2078,2762.9,2761.8,6.30436579]
[1738749904005,3.2078,2762.6,2761.8,6.30436579]
[1738749904206,3.2078,2762.6,2761.2,2.77927286]
[1738749904207,3.2078,2762.6,2761.5,6.30436579]
[1738749904405,40.8,2762.5,2761.5,6.30436579]
[1738749904596,0.5709,2762.4,2761.8,3.09656579]
[1738749904997,0.5709,2762.4,2761.8,6.30436579]
[1738749906905,0.584,2762.3,2761.8,6.30436579]
[1738749908102,0.584,2762.3,2762.1,3.2078]
[1738749908305,0.8473,2762.8,2762.2,0.72373]
[1738749908506,1.1692,2763.1,2762.6,3.2078]
[1738749908708,1.1692,2763.1,2762.8,3.09656579]
[1738749908909,0.584,2763.1,2762.8,3.09656579]
[1738749910815,0.584,2763.1,2762.7,3.2078]
[1738749913511,0.6061,2763.0,2762.7,3.2078]
[1738749913911,0.584,2763.1,2762.7,3.2078]
[1738749914213,0.584,2763.1,2762.8,3.09656579]
[1738749914613,0.584,2763.1,2762.7,3.2078]
[1738749917016,0.5914,2763.0,2762.7,3.2078]
[1738749918011,0.584,2763.1,2762.7,3.2078]
[1738749918614,0.584,2763.1,2763.0,3.2078]
[1738749918814,0.005428,2763.4,2763.0,3.2078]
[1738749919016,0.005428,2763.4,2763.1,3.09656579]
[1738749919215,0.581728,2763.4,2763.1,3.09656579]
[1738749919614,0.581728,2763.4,2763.0,3.2078]
[1738749919822,1.1858,2763.3,2763.0,3.2078]
[1738749920212,40.8,2763.2,2763.0,3.2078]
[1738749920613,40.8,2763.2,2762.7,3.2078]
[1738749920918,41.52348,2763.2,2762.7,3.2078]
[1738749921219,41.52348,2763.2,2761.9,3.09656579]
[1738749921220,3.93136,2762.9,2761.9,3.09656579]
[1738749921417,3.2078,2762.5,2761.9,3.09656579]
[1738749921617,0.5976,2762.4,2761.9,3.09656579]
[1738749921916,3.2078,2762.2,2761.7,0.005428]
[1738749922312,3.2078,2761.9,2761.7,0.005428]
[1738749924613,4.3924,2762.3,2761.7,3.213228]
[1738749924926,3.2078,2762.3,2761.9,3.09656579]
[1738749925122,3.2078,2762.8,2762.2,3.09656579]
[1738749925321,5.0059,2763.1,2762.2,3.09656579]
[1738749926628,3.2078,2762.8,2762.2,3.09656579]
[1738749926925,3.2078,2762.8,2762.0,0.574]
[1738749927227,3.2078,2762.5,2761.9,3.09656579]
[1738749927527,1.7733,2762.4,2761.9,3.09656579]
[1738749928123,3.2078,2763.0,2762.3,3.2078]
[1738749928326,3.2078,2763.0,2762.5,3.09656579]
[1738749928824,3.2078,2763.0,2762.3,3.2078]
[1738749929029,3.2078,2762.7,2761.9,3.09656579]
[1738749929232,3.2078,2762.4,2761.9,3.09656579]
[1738749930122,0.589,2762.5,2761.7,0.005428]
[1738749930123,3.2078,2762.1,2761.7,0.005428]
[1738749933027,3.2078,2761.8,2761.7,0.005428]
[1738749933539,3.2078,2761.8,2760.7,0.1428]
[1738749933540,49.0078,2761.8,2760.7,3.09656579]
[1738749933732,3.2078,2761.2,2760.7,3.09656579]
[1738749934830,3.213228,2761.2,2760.7,3.10199379]
[1738749938131,0.00908136,2761.0,2760.7,3.10199379]
[1738749946935,0.00908136,2761.0,2760.8,4.71109185]
[1738749947136,0.00908136,2761.0,2760.9,0.5853]
[1738749947338,0.00908136,2761.0,2760.9,0.6225]
[1738749949038,0.00908136,2761.0,2760.9,3.8303]
[1738749949333,0.005428,2761.2,2760.9,8.8303]
[1738749949535,3.2078,2761.8,2761.1,3.09656579]
[1738749949842,3.2078,2761.8,2761.6,3.09656579]
[1738749951539,3.2078,2761.8,2761.3,3.09656579]
[1738749951730,1.1137,2761.7,2761.0,3.09656579]
[1738749953535,3.2078,2761.4,2761.0,3.09656579]
[1738749954935,3.2078,2761.4,2760.7,3.10199379]
[1738749955136,0.5523,2761.3,2760.7,3.10199379]
[1738749955546,0.5523,2761.3,2760.7,0.005428]
[1738749956241,3.2078,2761.0,2760.7,0.005428]
[1738749956444,1.1021,2760.9,2760.7,0.005428]
[1738749958549,1.1021,2760.9,2760.2,3.2078]
[1738749958755,3.2078,2760.7,2760.0,0.32609]
[1738749959052,3.2078,2760.1,2760.0,0.32609]
[1738749961949,3.7662,2760.1,2760.0,0.32609]
[1738749962157,3.74920325,2760.1,2760.0,0.32609]
[1738749962761,6.71320325,2760.1,2759.8,0.005428]
[1738749962962,0.72435,2759.9,2758.9,6.84296579]
[1738749963261,3.2078,2759.5,2758.9,6.84296579]
[1738749964056,3.2078,2759.5,2758.9,6.84839379]
[1738749964459,1.1545,2759.4,2758.9,6.84839379]
[1738749965662,3.2078,2759.8,2759.2,6.30436579]
[1738749965860,3.2078,2759.8,2759.6,3.09656579]
[1738749966061,3.2078,2760.1,2759.6,3.09656579]
[1738749966258,0.005428,2760.3,2760.0,3.09656579]
[1738749967355,0.005428,2760.3,2759.7,3.67236579]
[1738749967555,3.2078,2760.2,2759.4,7.52536579]
[1738749967756,1.658,2760.1,2759.4,7.52536579]
[1738749969963,1.658,2760.1,2759.7,3.09656579]
[1738749970163,1.0736,2760.1,2759.7,3.09656579]
[1738749970366,1.6423,2760.1,2759.7,3.09656579]
[1738749972063,1.6423,2760.1,2759.4,7.52536579]
[1738749973169,1.6423,2760.1,2759.7,3.09656579]
[1738749974565,1.6423,2760.1,2759.5,2.47747435]
[1738749974970,3.2078,2759.6,2759.0,0.28788316]
[1738749975271,1.6802,2759.5,2758.9,2.48290235]
[1738749975470,3.2078,2759.3,2758.9,0.005428]
[1738749976268,3.2078,2759.0,2758.9,0.005428]
[1738749977462,3.2078,2759.0,2758.9,3.1124696]
[1738749977664,4.888,2759.5,2758.9,3.1124696]
[1738749977864,4.888,2759.5,2758.9,6.3202696]
[1738749978366,3.2078,2759.5,2759.2,3.1070416]
[1738749980573,0.5485,2759.4,2759.2,3.1070416]
[1738749983168,3.2078,2759.5,2759.2,3.1070416]
[1738749986869,0.5468,2760.1,2759.2,6.3148416]
[1738749986870,3.2078,2759.9,2759.2,6.3148416]
[1738749987173,3.2078,2759.9,2759.5,3.1070416]
[1738749988781,0.5468,2760.1,2759.8,3.1070416]
[1738749989078,0.5468,2760.1,2759.8,6.3148416]
[1738749991173,0.5468,2760.1,2759.5,3.1070416]
[1738749991670,0.5468,2760.1,2759.6,0.5562]
[1738749992072,0.005428,2760.3,2759.8,3.1070416]
[1738749993179,3.2078,2761.1,2760.1,6.3148416]
[1738749993371,4.3315,2761.1,2760.4,6.3148416]
[1738749994174,15.28476571,2761.9,2761.0,6.3148416]
[1738749994175,3.2078,2761.7,2761.0,6.3148416]
[1738749994375,3.7454,2761.7,2761.0,6.3148416]
[1738749994683,0.005428,2761.6,2761.0,6.3148416]
[1738749994978,0.005428,2761.6,2761.1,0.5707]
[1738749997378,0.005428,2761.6,2761.3,3.2078]
[1738750000585,0.005428,2761.6,2761.3,6.3148416]
[1738750001085,1.1109,2762.2,2761.3,6.3148416]
[1738750001287,1.1109,2762.2,2761.9,3.2078]
[1738750001884,3.2078,2762.9,2761.9,3.2078]
[1738750002078,3.2078,2762.9,2762.2,3.2078]
[1738750002481,0.005428,2762.7,2762.3,0.005428]
[1738750006096,3.936828,2762.7,2761.8,3.2078]
[1738750006287,3.2078,2762.4,2761.8,3.2078]
[1738750006585,1.1191,2762.3,2761.8,3.2078]
[1738750007382,1.1191,2762.3,2761.8,3.213228]
[1738750009392,0.5448,2762.2,2761.8,3.213228]
[1738750016191,0.5448,2762.2,2761.8,0.005428]
[1738750017193,3.5088,2762.2,2761.8,0.005428]
[1738750018994,4.23253,2762.2,2761.8,0.005428]
[1738750019193,3.5088,2762.2,2761.8,0.005428]
[1738750019790,3.2078,2762.0,2761.8,0.005428]
[1738750019993,6.1718,2762.0,2761.8,0.005428]
[1738750022903,2.964,2762.0,2761.8,2.47925098]
[1738750023102,3.2078,2762.6,2761.9,0.5758]
[1738750023295,0.005428,2762.7,2761.9,0.5758]
[1738750023296,0.005428,2762.7,2762.2,3.2078]
[1738750028201,3.2078,2762.5,2761.8,3.213228]
[1738750028502,0.72371,2762.3,2761.8,0.005428]
[1738750028703,0.5553,2762.2,2761.8,0.005428]
[1738750028906,0.5553,2762.2,2761.1,0.3735]
[1738750028907,3.2078,2761.9,2761.0,3.2078]
[1738750029201,3.93162,2761.9,2761.0,3.2078]
[1738750029399,3.93162,2761.9,2761.1,3.2078]
[1738750029607,3.2078,2761.6,2760.7,3.2078]
[1738750029801,1.1295,2761.5,2760.7,3.2078]
[1738750030003,1.1295,2761.5,2760.6,2.47382298]
[1738750030004,3.2078,2761.3,2760.6,2.47382298]
[1738750030201,3.2078,2761.3,2760.8,0.005428]
[1738750030503,3.213228,2761.3,2760.8,0.005428]
[1738750030996,0.005428,2761.3,2760.8,0.005428]
[1738750031809,0.005428,2761.3,2760.9,3.10250238]
[1738750033204,0.005428,2761.3,2761.1,3.2078]
[1738750033899,0.005428,2761.3,2761.2,3.10250238]
[1738750034302,3.2078,2761.9,2761.2,8.82648238]
[1738750034603,1.0989,2762.2,2761.8,3.2078]
[1738750034796,0.5489,2762.2,2761.8,3.2078]
[1738750035001,0.5594,2762.5,2761.8,3.2078]
[1738750035199,0.5818,2762.6,2761.9,3.10250238]
[1738750035405,3.10250238,2763.2,2762.1,3.2078]
[1738750035406,3.2078,2762.7,2762.1,3.2078]
[1738750035599,0.005428,2762.4,2762.1,3.2078]
[1738750039410,0.005428,2762.4,2762.2,3.10250238]
[1738750041008,0.005428,2762.4,2762.1,3.2078]
[1738750042206,0.005428,2762.4,2762.2,3.10250238]
[1738750043713,0.005428,2762.4,2762.1,3.2078]
[1738750048014,0.005428,2762.4,2762.0,0.005428]
[1738750050312,0.005428,2762.4,2762.2,3.10250238]
[1738750050618,4.3568,2763.1,2762.3,4.6485454]
[1738750050920,3.2078,2763.1,2762.8,3.10250238]
[1738750051509,3.2078,2763.1,2762.6,3.2078]
[1738750051905,0.5523,2763.0,2762.6,3.2078]
[1738750052313,1.1246,2763.0,2762.6,3.2078]
[1738750052718,1.1246,2763.0,2762.6,5.67974648]
[1738750054112,1.1246,2763.0,2762.6,2.47194648]
[1738750054417,1.7064,2763.0,2762.6,2.47194648]
[1738750055511,3.213228,2763.1,2762.9,2.47194648]
[1738750056513,0.005428,2763.1,2762.9,5.67974648]
[1738750057521,0.005428,2763.1,2763.0,0.5523]
[1738750058221,15.28476571,2764.2,2763.5,0.72338]
[1738750058421,15.28476571,2764.2,2764.1,2.47194648]
[1738750061123,0.005428,2764.4,2764.1,2.47194648]
[1738750061420,3.213228,2764.4,2763.9,0.005428]
[1738750061723,40.8,2764.3,2763.9,0.005428]
[1738750061912,3.2078,2764.1,2763.9,0.005428]
[1738750062112,3.2078,2764.1,2763.5,2.47194648]
[1738750062712,3.93103,2764.1,2763.2,2.47194648]
[1738750062913,0.5822,2764.0,2763.2,2.47194648]
[1738750063316,0.5822,2764.0,2763.3,0.005428]
[1738750064619,0.5822,2764.0,2763.5,2.47194648]
[1738750065329,0.5674,2763.9,2763.5,2.47194648]
[1738750066119,0.5674,2763.9,2763.3,0.005428]
[1738750066120,0.5674,2763.9,2763.8,2.47194648]
[1738750066822,0.5674,2763.9,2763.5,2.47194648]
[1738750067015,0.5822,2764.0,2763.5,2.47194648]
[1738750067326,0.5674,2763.9,2763.5,2.47194648]
[1738750070129,0.5674,2763.9,2763.5,5.67974648]
[1738750070923,1.1206,2763.9,2763.5,5.67974648]
[1738750076426,0.5822,2764.0,2763.5,5.67974648]
[1738750077928,0.5822,2764.0,2763.8,2.47194648]
[1738750080329,0.5479,2764.3,2763.8,5.67974648]
[1738750080527,1.1297,2764.3,2763.8,5.67974648]
[1738750082427,1.1297,2764.3,2763.3,0.005428]
[1738750082428,0.5818,2764.3,2764.2,3.2078]
[1738750082623,0.005428,2764.4,2764.2,3.2078]
[1738750082823,0.005428,2764.4,2764.2,3.7625]
[1738750083030,0.005428,2764.4,2764.3,2.47194648]
[1738750083229,0.005428,2764.4,2764.3,0.3673]
[1738750083829,0.005428,2764.4,2764.3,2.83924648]
[1738750084032,0.005428,2764.4,2764.3,8.56242648]
[1738750084223,3.748,2765.6,2764.3,7.83924648]
[1738750084426,1.116,2765.5,2765.2,2.47194648]
[1738750086127,3.2078,2765.3,2765.1,0.005428]
[1738750091142,0.00375961,2765.2,2764.3,2.47194648]
[1738750091334,3.2078,2765.0,2764.3,2.47194648]
[1738750091533,1.1057,2764.9,2764.3,2.47194648]
[1738750092245,3.2078,2764.8,2764.3,2.47194648]
[1738750092546,3.2078,2764.8,2764.3,2.47737448]
[1738750093141,3.2078,2764.8,2764.3,0.005428]
[1738750094436,0.5736,2764.7,2764.3,0.005428]
[1738750095140,0.5736,2764.7,2764.3,2.47737448]
[1738750096036,0.5736,2764.7,2764.3,3.213228]
[1738750096241,0.5736,2764.7,2764.6,2.47194648]
[1738750096643,1.1057,2764.9,2764.6,5.67974648]
[1738750097042,3.21155961,2765.2,2764.6,5.67974648]
[1738750097244,3.21155961,2765.2,2764.4,0.5304]
[1738750097245,0.00375961,2765.2,2765.1,2.47194648]
[1738750098245,0.00375961,2765.2,2765.1,3.01134648]
[1738750099145,0.00375961,2765.2,2765.1,2.47194648]
[1738750099842,0.00375961,2765.2,2764.8,2.47194648]
[1738750114059,0.00375961,2765.2,2764.8,3.19498648]
[1738750114260,0.00375961,2765.2,2765.1,2.47194648]
[1738750114862,0.00375961,2765.2,2765.1,3.37574648]
[1738750115462,0.00375961,2765.2,2765.1,3.00314648]
[1738750115664,0.00375961,2765.2,2764.8,2.47194648]
[1738750118563,0.00375961,2765.2,2765.1,2.47194648]
[1738750121865,0.00375961,2765.2,2765.1,3.02954648]
[1738750123070,0.00375961,2765.2,2765.1,2.47194648]
[1738750123369,0.00375961,2765.2,2764.8,2.47194648]
[1738750129172,0.00375961,2765.2,2764.7,3.2078]
[1738750129568,3.2078,2765.1,2764.5,2.47194648]
[1738750129769,1.1176,2765.0,2764.5,2.47194648]
[1738750135977,1.1176,2765.0,2764.6,0.533]
[1738750136973,1.1176,2765.0,2764.5,2.47194648]
[1738750137174,1.1176,2765.0,2764.3,3.213228]
[1738750137375,0.72303,2764.9,2764.3,3.213228]
[1738750137974,1.1176,2765.0,2764.3,3.213228]
[1738750139275,1.1176,2765.0,2764.4,0.5482]
[1738750139476,1.1176,2765.0,2764.3,3.213228]
[1738750140180,1.1176,2765.0,2764.5,2.47194648]
[1738750141176,1.1176,2765.0,2764.3,3.213228]
[1738750141177,1.1176,2765.0,2764.8,2.47194648]
[1738750141985,1.1176,2765.0,2764.5,3.03414648]
[1738750147681,0.00375961,2765.2,2764.8,2.47194648]
[1738750147875,0.00375961,2765.2,2765.1,2.47194648]
[1738750148476,0.00375961,2765.2,2765.1,3.00464648]
[1738750152892,0.005428,2765.6,2765.1,3.00464648]
[1738750153192,0.005428,2765.6,2765.5,2.47194648]
[1738750153785,0.005428,2765.6,2765.5,5.67974648]
[1738750154492,0.005428,2765.6,2765.5,3.2078]
[1738750155489,0.005428,2765.6,2765.4,2.47194648]
[1738750157189,0.005428,2765.6,2765.4,5.67974648]
[1738750157396,15.28476571,2766.1,2765.5,0.3689]
[1738750157600,15.28476571,2766.1,2765.7,5.67974648]
[1738750157783,15.28476571,2766.1,2766.0,2.47194648]
[1738750158492,15.28476571,2766.1,2766.0,5.67974648]
[1738750158688,15.28476571,2766.1,2766.0,6.40248648]
[1738750159097,0.005428,2766.3,2766.0,5.67974648]
[1738750161093,40.8,2766.2,2765.8,0.005428]
[1738750161500,0.5339,2766.1,2765.8,0.005428]
[1738750162899,3.2078,2766.0,2765.8,0.005428]
[1738750163096,0.5876,2765.9,2765.4,2.47194648]
[1738750163300,0.534,2765.8,2765.4,2.47194648]
[1738750164391,0.534,2765.8,2765.4,3.04244648]
[1738750165102,0.534,2765.8,2765.4,2.47194648]
[1738750166799,0.534,2765.8,2765.3,3.213228]
[1738750167006,3.2078,2765.7,2765.3,0.005428]
[1738750167193,3.2078,2765.4,2765.3,0.005428]
[1738750169099,3.2078,2765.4,2764.8,2.47194648]
[1738750169306,0.5739,2765.3,2764.8,2.47194648]
[1738750169505,0.5804,2765.2,2764.8,2.47194648]
[1738750171103,3.7882,2765.2,2764.7,0.005428]
[1738750172203,3.7882,2765.2,2764.8,2.47194648]
[1738750173007,3.7882,2765.2,2765.1,2.47194648]
[1738750173905,3.7882,2765.2,2764.7,3.213228]
[1738750174114,0.5704,2765.1,2764.7,0.005428]
[1738750178316,3.2078,2764.9,2764.7,0.005428]
[1738750179219,0.5704,2765.1,2764.7,0.005428]
[1738750188120,0.5704,2765.1,2764.7,3.213228]
[1738750188317,3.7882,2765.2,2765.0,2.47194648]
[1738750190016,4.3498,2765.2,2765.0,2.47194648]
[1738750192222,1.142,2765.2,2765.0,2.47194648]
[1738750193818,1.142,2765.2,2765.0,5.67974648]
[1738750200226,0.5739,2765.3,2765.0,5.67974648]
[1738750200425,1.075,2765.8,2765.0,5.67974648]
[1738750200724,1.607,2765.8,2765.7,2.47194648]
[1738750201223,0.532,2765.8,2765.7,2.47194648]
[1738750201523,1.075,2766.2,2765.7,2.47194648]
[1738750201825,0.005428,2766.3,2766.1,2.47194648]
[1738750202125,0.005428,2766.3,2766.2,0.5517]
[1738750202321,0.01336,2766.7,2766.2,7.80129548]
[1738750202529,0.01336,2766.7,2766.6,3.2078]
[1738750204926,0.01336,2766.7,2766.6,8.7307206]
[1738750205125,0.01336,2766.7,2766.6,8.0081406]
[1738750205331,0.01336,2766.7,2766.6,3.2078]
[1738750207830,0.01336,2766.7,2766.5,2.47194648]
[1738750211423,0.005428,2766.9,2766.5,2.47194648]
[1738750211626,0.005428,2766.9,2766.8,2.47194648]
[1738750219137,0.005428,2766.9,2766.7,3.2078]
[1738750220238,0.005428,2766.9,2766.5,2.47194648]
[1738750221833,3.2078,2766.8,2766.4,0.005428]
[1738750222135,3.2078,2766.8,2766.2,2.47194648]
[1738750222136,3.2078,2766.5,2765.9,2.47194648]
[1738750223243,3.2078,2766.5,2765.9,2.47737448]
[1738750223632,3.2078,2766.5,2766.2,2.47194648]
[1738750223840,1.7232,2766.7,2766.2,5.67974648]
[1738750224038,1.1515,2766.7,2766.6,2.47194648]
[1738750224239,0.005428,2766.9,2766.6,2.47194648]
[1738750224837,0.005428,2766.9,2766.8,3.2078]
[1738750227744,0.72226,2767.9,2766.8,3.2078]
[1738750227745,3.2078,2767.9,2766.8,8.2078]
[1738750228051,0.5494,2767.8,2767.4,2.47194648]
[1738750228246,0.5494,2767.8,2767.7,2.47194648]
[1738750231551,0.5494,2767.8,2767.5,0.005428]
[1738750235053,0.5494,2767.8,2767.7,2.47194648]
[1738750235752,4.306728,2768.0,2767.7,2.47194648]
[1738750235951,4.867428,2768.0,2767.7,2.47194648]
[1738750236363,4.867428,2768.0,2767.5,0.005428]
[1738750241957,3.2078,2767.7,2766.8,2.47194648]
[1738750242158,3.2078,2767.0,2766.5,2.47194648]
[1738750242352,1.1318,2766.9,2766.2,2.47194648]
[1738750242559,1.8543,2766.9,2766.2,2.47194648]
[1738750242860,1.1318,2766.9,2766.2,2.47194648]
[1738750243062,1.1318,2766.9,2766.3,0.005428]
[1738750243457,3.2078,2766.7,2766.3,0.005428]
[1738750245151,0.556,2766.6,2766.3,0.005428]
[1738750247368,3.2078,2766.7,2766.5,2.47194648]
[1738750250565,3.2078,2766.7,2766.3,0.005428]
[1738750251168,3.2078,2766.4,2766.3,0.005428]
[1738750254662,0.72268,2766.3,2765.6,2.47194648]
[1738750254857,3.2078,2766.0,2765.6,2.47194648]
[1738750255061,3.2078,2766.0,2765.3,5.67974648]
[1738750255867,0.005428,2765.9,2765.4,0.005428]
[1738750256268,0.005428,2765.9,2765.6,2.47194648]
[1738750264868,0.005428,2765.9,2765.7,3.2078]
[1738750265071,0.005428,2765.9,2765.8,0.3911]
[1738750265266,0.005428,2765.9,2765.8,5.3911]
[1738750265675,0.005428,2765.9,2765.8,0.3911]
[1738750266068,0.005428,2765.9,2765.7,0.5322]
[1738750266569,0.005428,2765.9,2765.6,2.47194648]
[1738750268773,3.2078,2765.7,2764.7,2.47194648]
[1738750269076,3.2078,2765.3,2764.7,2.47194648]
[1738750269275,3.93072,2765.3,2764.7,2.47194648]
[1738750269778,3.2078,2764.9,2764.4,2.47194648]
[1738750269979,1.6949,2764.8,2764.4,2.47194648]
[1738750270177,1.6949,2764.8,2764.7,0.005428]
[1738750270479,0.5781,2764.8,2764.7,2.47737448]
[1738750270779,3.2078,2765.2,2764.7,2.47737448]
[1738750271381,3.2078,2765.2,2764.7,0.005428]
[1738750271678,3.2078,2764.9,2764.7,0.005428]
[1738750271874,0.537,2764.8,2764.3,2.47194648]
[1738750272075,1.1432,2764.7,2764.3,2.47194648]
[1738750273083,3.2078,2765.2,2764.6,3.2078]
[1738750273382,0.5869,2765.4,2765.1,2.47194648]
[1738750273577,0.5869,2765.4,2764.8,2.47194648]
[1738750273777,3.2078,2765.2,2764.8,2.47194648]
[1738750273977,0.5563,2765.1,2764.8,2.47194648]
[1738750274976,0.5721,2765.0,2764.8,2.47194648]
[1738750276577,0.5721,2765.0,2764.5,2.47194648]
[1738750278177,0.5869,2765.4,2764.8,2.47194648]
[1738750278382,0.5869,2765.4,2765.1,2.47194648]
[1738750278985,3.2078,2765.5,2765.1,2.47194648]
[1738750280479,3.7589,2765.7,2765.4,2.47194648]
[1738750281397,3.7589,2765.7,2765.1,2.47194648]
[1738750283187,4.48172,2765.7,2765.1,2.47194648]
[1738750283691,3.7589,2765.7,2765.1,2.47194648]
[1738750284494,4.48172,2765.7,2765.1,2.47194648]
[1738750285295,3.7589,2765.7,2765.1,2.47194648]
[1738750285985,4.48174,2765.7,2765.1,2.47194648]
[1738750286185,4.48173,2765.7,2765.1,2.47194648]
[1738750286481,3.7589,2765.7,2764.8,3.2078]
[1738750286679,3.7589,2765.7,2764.8,5.67974648]
[1738750286680,3.2078,2765.3,2764.8,5.67974648]
[1738750286891,1.1114,2765.2,2764.8,5.67974648]
[1738750287093,0.5342,2765.1,2764.8,5.67974648]
[1738750288493,3.2078,2765.3,2764.8,5.67974648]
[1738750288693,3.2078,2765.3,2765.1,2.47194648]
[1738750291790,4.8198,2765.7,2765.1,2.47194648]
[1738750292693,3.2078,2765.5,2765.1,2.47194648]
[1738750298994,3.2078,2765.2,2764.8,2.47194648]
[1738750299196,3.2078,2764.9,2764.2,2.47556514]
[1738750299594,44.0078,2764.9,2764.2,2.47556514]
[1738750299792,3.2078,2764.9,2764.2,2.47556514]
[1738750301793,3.2078,2764.5,2764.2,2.47556514]
[1738750302097,1.7234,2764.4,2764.2,2.47556514]
[1738750303200,3.2078,2764.5,2764.2,2.47556514]
[1738750303502,1.1597,2764.8,2764.2,6.08046514]
[1738750303697,1.1597,2764.8,2764.7,2.47194648]
[1738750304490,1.1597,2764.8,2764.4,2.47194648]
[1738750304794,1.1597,2764.8,2764.2,0.00361866]
[1738750304995,3.2078,2764.6,2764.2,0.00361866]
[1738750305196,3.2078,2764.6,2764.4,2.47194648]
[1738750307109,0.5341,2764.5,2764.4,2.47194648]
[1738750307702,1.1597,2764.8,2764.4,2.47194648]
[1738750310097,1.1597,2764.8,2764.2,3.21141866]
[1738750310303,1.88275,2764.8,2764.2,3.21141866]
[1738750310498,3.93098,2764.3,2764.2,0.00361866]
[1738750310810,3.2078,2764.3,2763.3,0.5768]
[1738750311003,3.2078,2764.3,2763.1,3.2078]
[1738750311004,3.2078,2763.7,2763.1,3.2078]
[1738750311507,3.2078,2763.7,2763.4,0.04940955]
[1738750312197,0.005428,2763.8,2763.5,2.47194648]
[1738750312508,0.005428,2763.8,2763.6,0.04940955]
[1738750313601,0.005428,2763.8,2763.7,0.04940955]
[1738750321912,0.584628,2763.8,2763.7,0.04940955]
[1738750325715,0.584628,2763.8,2763.1,3.2078]
[1738750326015,3.2078,2763.3,2762.9,2.47194648]
[1738750326215,1.1199,2763.2,2762.9,2.47194648]
[1738750326816,1.1199,2763.2,2762.7,3.2078]
[1738750328018,3.2078,2763.0,2762.4,0.5713]
[1738750329314,3.2078,2763.0,2762.7,0.01807781]
[1738750330319,3.2078,2763.0,2762.8,0.01807781]
[1738750331115,3.2078,2763.0,2762.4,3.7791]
[1738750331116,3.2078,2763.0,2762.9,0.03935098]
[1738750331321,0.5648,2763.2,2762.9,3.24715098]
[1738750331619,0.5648,2763.2,2762.9,2.51129746]
[1738750332213,0.5648,2763.2,2763.0,0.03935098]
[1738750332719,1.1274,2763.1,2763.0,0.03935098]
[1738750338623,0.5776,2763.1,2763.0,0.03935098]
[1738750339127,3.2078,2763.3,2763.0,0.03935098]
[1738750339332,3.7406,2763.6,2763.2,2.47194648]
[1738750339518,3.2078,2763.6,2763.5,2.47194648]
[1738750340331,3.2078,2763.6,2763.5,0.03935098]
[1738750341130,3.2078,2763.6,2763.5,2.51129746]
[1738750341841,0.5328,2763.7,2763.5,2.51129746]
[1738750342434,0.5328,2763.7,2763.6,0.03935098]
[1738750346448,0.005428,2763.8,2763.6,0.03935098]
[1738750346745,0.005428,2763.8,2763.7,0.5588]
[1738750347446,0.005428,2763.8,2763.7,0.59815098]
[1738750348039,0.5443,2764.3,2763.7,5.59815098]
[1738750348244,0.5443,2764.3,2764.1,2.47194648]
[1738750348444,0.5443,2764.3,2764.2,0.03935098]
[1738750348748,0.5443,2764.3,2764.2,0.07545098]
[1738750350547,0.5443,2764.3,2764.0,0.005428]
[1738750350751,0.5443,2764.3,2763.2,5.67974648]
[1738750350752,3.2078,2764.1,2763.2,5.67974648]
[1738750351044,3.2078,2763.8,2762.9,0.9958]
[1738750351242,0.5858,2763.7,2762.9,0.9958]
[1738750351441,0.5858,2763.7,2763.1,2.47194648]
[1738750352048,3.2078,2763.5,2763.1,2.47194648]
[1738750352245,0.5446,2763.4,2763.1,2.47194648]
[1738750353348,3.2078,2763.5,2763.1,2.47194648]
[1738750353548,3.2078,2763.5,2763.4,2.47194648]
[1738750355239,3.2078,2763.8,2763.4,2.47194648]
[1738750359448,3.2078,2763.8,2763.1,2.47194648]
[1738750359650,3.2078,2763.5,2762.8,5.86120049]
[1738750359851,1.715,2763.4,2762.8,5.67974648]
[1738750365657,1.715,2763.4,2762.4,0.5501]
[1738750365658,1.715,2763.4,2762.4,3.2078]
[1738750365860,3.2078,2762.9,2762.4,3.2078]
[1738750366158,1.6711,2762.8,2762.4,3.2078]
[1738750366855,1.6711,2762.8,2762.5,2.47194648]
[1738750368561,1.6711,2762.8,2761.9,5.67974648]
[1738750368562,4.8789,2762.8,2761.9,5.67974648]
[1738750368759,4.8789,2762.8,2761.9,2.47194648]
[1738750368958,4.8789,2762.8,2762.0,3.2078]
[1738750370664,3.2078,2762.5,2761.6,6.23504648]
[1738750370960,3.2078,2762.2,2761.6,6.23504648]
[1738750371161,1.6317,2762.1,2761.6,6.23504648]
[1738750371561,1.6317,2762.1,2761.6,2.47194648]
[1738750372859,2.47194648,2761.7,2760.7,3.2078]
[1738750373062,2.47194648,2761.4,2760.4,3.2078]
[1738750373265,3.2078,2761.2,2760.4,3.2078]